[Event "US Masters 2022"]
[Site "Charlotte"]
[Date "2022.11.27"]
[Round "7.12"]
[White "Macovei, Andrei"]
[Black "Schitco, Ivan"]
[Result "1/2-1/2"]
[ECO "C55"]
[WhiteElo "2482"]
[BlackElo "2532"]
[Annotator "TA"]
[PlyCount "140"]
[EventDate "2022.11.23"]
[EventType "swiss"]
[EventCountry "USA"]
[SourceTitle "playchess.com"]
[Source "ChessBase"]
[SourceQuality "1"]
[TimeControl "5400+30"]

{[%evp 9,140,16,14,17,14,16,27,25,30,8,5,8,10,7,14,10,18,0,0,7,47,20,20,23,29,19,34,13,75,36,113,65,54,55,63,0,26,0,0,-77,113,9,136,131,138,32,38,29,136,129,129,127,176,154,162,137,138,135,132,131,154,102,130,132,246,246,263,244,197,195,325,263,245,118,118,118,118,118,118,118,203,207,253,132,1092,1053,911,463,1157,104,104,104,104,0,62,0,1625,1439,2054,2142,1947,1763,4134,4093,500,396,275,195,29956,29957,29965,29967,29967,29968,29968,29968,29970,29971,29971,29965,29964,29964,29964,0,29961,0,0,0,0,0,0,0,0]} 1. e4 {[%emt 0:10:00]} e5 {[%emt 0:00:08]} 2. Nf3 {[%emt 0:00:29]} Nc6 {[%emt 0:00:08]} 3. Bc4 {[%emt 0:00:04]} d6 {[%emt 0:00:43]} 4. O-O {[%emt 0:01:16]} Be7 {[%emt 0:00:20]} 5. Nc3 {[%emt 0:04:31]} Nf6 {[%emt 0:01:43]} 6. Re1 {[%emt 0:04:17] C55: Two Knights: 4 d3, 4 d4 exd4 5 e5 and Max Lange Attack.} O-O {[%emt 0:02:56]} 7. a4 {[%emt 0:01:44] [#]} Na5 $146 {[%emt 0:17:25]} ({Predecessor:} 7... h6 8. h3 Kh8 9. d4 Ng8 10. Be3 f5 11. dxe5 Nxe5 12. Nxe5 dxe5 13. exf5 Qxd1 14. Raxd1 Bxf5 {½-½ (51) Salvadego,M (1884)-Arndt,C (1696) Sao Bento do Sul 2019}) 8. Ba2 {[%emt 0:02:27] White has an edge.} c5 {[%emt 0:00:16]} 9. Nd5 {[%emt 0:06:33]} Nxd5 {[%emt 0:08:24]} 10. Bxd5 {[%emt 0:00:04]} Be6 {[%emt 0:06:18]} 11. Bxe6 {[%emt 0:01:19]} fxe6 {[%emt 0:01:58]} 12. d3 {[%emt 0:02:15]} Qb6 {[%emt 0:05:44]} 13. Be3 {[%emt 0:03:42]} Nc6 {[%emt 0:06:30]} 14. Rb1 {[%emt 0:06:00][%cal Ob2b4]} Nd4 {[%emt 0:03:35] Against b4} 15. Nd2 {[%emt 0:01:50]} Qa6 {[%emt 0:00:33]} 16. b4 {[%emt 0:07:09]} cxb4 {[%emt 0:08:43]} 17. Bxd4 {[%emt 0:03:05]} exd4 {[%emt 0:00:02]} 18. Rxb4 {[%emt 0:01:33]} Bf6 {[%emt 0:01:50]} (18... Rac8 $11) 19. Qg4 {[%emt 0:03:32]} (19. Qb1 $5 {[%cal Rb1b3]}) 19... d5 {[%emt 0:04:10]} (19... Rae8 $14) 20. Reb1 {[%emt 0:03:00] White is more active.} (20. exd5 $16 exd5 21. Qd7) 20... Rac8 $14 {[%emt 0:03:59]} 21. R1b2 {[%emt 0:10:29]} Rc7 {[%emt 0:01:46]} 22. g3 {[%emt 0:02:14]} Qc6 {[%emt 0:08:34]} 23. Rb5 {[%emt 0:04:13]} b6 {[%emt 0:01:29]} 24. h4 {[%emt 0:05:57]} (24. Qe2 $11) 24... Rfc8 $2 {[%emt 0:02:58]} (24... Rcf7 $1 $17 {[%cal Of6h4] keeps the pressure on. White must now prevent ...Bxh4!} 25. h5 Be7 26. exd5 exd5) 25. Kg2 {[%emt 0:02:03]} ({White should play} 25. a5 $16) 25... Qd6 {[%emt 0:01:45]} (25... Rf7 $11) 26. exd5 $16 {[%emt 0:01:49]} exd5 {[%emt 0:00:14]} 27. Qf5 {[%emt 0:02:45]} ({Better is} 27. a5 $1 $16) 27... Rd8 $14 {[%emt 0:02:29]} 28. a5 {[%emt 0:01:13]} Rc6 {[%emt 0:03:08]} (28... g6 29. Qg4 $14) (28... bxa5 $1 $11 29. Rxa5 Rf7) 29. Nf3 $16 {[%emt 0:00:49]} bxa5 {[%emt 0:01:26]} 30. Rxa5 {[%emt 0:00:01]} Qd7 {[%emt 0:00:10]} (30... Ra6 $16 31. Rxa6 Qxa6) 31. Qxd7 $18 {[%emt 0:03:20]} Rxd7 {[%emt 0:00:01]} 32. g4 {[%emt 0:00:15][%cal Bg3g4,Bg4g5][%mdl 32]} g6 {[%emt 0:00:20]} 33. g5 {[%emt 0:00:32]} Bg7 {[%emt 0:00:04]} 34. Rba2 {[%emt 0:01:20]} Rc8 {[%emt 0:02:18]} 35. R5a4 {[%emt 0:02:12]} (35. Rxa7 $6 Rxa7 36. Rxa7 Rxc2 $16) ({White should try} 35. Ng1) 35... Rdc7 {[%emt 0:02:43]} 36. Nxd4 {[%emt 0:00:19]} (36. Rxa7 Rxa7 37. Rxa7 Rxc2) 36... Bxd4 {[%emt 0:00:03]} (36... Re7 $16 37. Nf3 (37. Rxa7 $2 Rxa7 38. Rxa7 Bxd4 $19) 37... Rcc7) 37. Rxd4 {[%emt 0:00:04]} Rxc2 {[%emt 0:00:03]} 38. Rxc2 {[%emt 0:00:12]} (38. Rxa7 Rf8 $14) 38... Rxc2 {[%emt 0:00:01]} 39. Rxd5 $16 {[%emt 0:00:05][%mdl 4096] Endgame Rd8+ is the strong threat. KR-KR} Rc7 {[%emt 0:01:35]} (39... Rd2 $142 40. Rd8+ Kg7 41. Rd7+ Kg8) 40. f4 $18 {[%emt 0:01:08]} a6 {[%emt 0:02:11]} 41. Kf3 {[%emt 0:00:31]} (41. d4 $1 $18 {and the rest is easy.}) 41... Ra7 $16 {[%emt 0:00:01]} 42. Ra5 $1 {[%emt 0:00:17] Strongly threatening d4.} Rd7 {[%emt 0:00:33] Against d4} 43. Ke4 {[%emt 0:00:59] Hoping for d4.} Re7+ {[%emt 0:00:01]} 44. Kd4 {[%emt 0:02:29]} Rd7+ {[%emt 0:00:01]} (44... Rf7 $16) 45. Rd5 $1 $18 {[%emt 0:00:58]} Rf7 {[%emt 0:00:23]} 46. Ke5 {[%emt 0:00:21]} ({White has to play} 46. Rd8+ $18 Kg7 47. Ke5) 46... a5 $2 {[%emt 0:01:16][%mdl 8192]} (46... Rf8 $16 47. Ke4 Re8+ 48. Kf3 Ra8) 47. Rd8+ $1 {[%emt 0:00:58]} (47. Rxa5 $2 Rf5+ 48. Ke4 Rxa5 $19) 47... Kg7 {[%emt 0:00:23]} 48. Ra8 {[%emt 0:00:08] aiming for d4.} Re7+ {[%emt 0:00:16]} 49. Kd4 $2 {[%emt 0:01:27]} (49. Kd6 $1 $18 {[%cal Rd6e7] is the precise move to win.} Rf7 50. d4 (50. Rxa5 Rxf4 51. Ra7+ Kf8 $16) 50... Rxf4 51. d5 (51. Rxa5 Rxd4+ 52. Ke5 Rxh4 $11) 51... Rxh4 52. Ke6 (52. Rxa5 h6 $16) 52... Re4+ 53. Kd7) 49... Rf7 $16 {[%emt 0:00:02]} 50. Ke4 $1 {[%emt 0:00:42] And now d4 would win.} (50. Rxa5 Rxf4+ 51. Kc5 Rf5+ 52. Kb6 Rf4 $14) 50... Re7+ {[%emt 0:00:01]} 51. Kd4 {[%emt 0:00:34][%cal Od4c5] Threatens to win with Kc5!} Rf7 {[%emt 0:00:02]} 52. Ke5 $2 {[%emt 0:00:19][%mdl 8192]} (52. Ke3 $14 Re7+ 53. Kf3) 52... Re7+ $18 {[%emt 0:00:01]} 53. Kd6 $1 {[%emt 0:00:06]} Rf7 {[%emt 0:00:03]} 54. d4 $1 {[%emt 0:00:31][%cal Bd3d4,Bd4d5,Bd5d6][%mdl 32]} (54. Rxa5 Rxf4 55. Ra7+ Kf8 $14) 54... Rxf4 {[%emt 0:00:21]} 55. d5 {[%emt 0:00:08]} (55. Rxa5 Rxd4+ 56. Ke6 Rxh4 $11) 55... Rxh4 {[%emt 0:02:12]} 56. Ke5 {[%emt 0:00:13][%cal Od5d6] Threatening mate with d6!} (56. Rxa5 h6 57. Ra7+ Kf8) 56... Rg4 {[%emt 0:01:02]} 57. Ra7+ {[%emt 0:00:04]} (57. Rxa5 Rxg5+ 58. Ke6 Rg3 $16) 57... Kf8 {[%emt 0:00:59]} 58. d6 {[%emt 0:00:06] Intending Ra8+ and mate.} (58. Rxh7 Rxg5+ 59. Ke6 Rg1 $16) 58... Ke8 $2 {[%emt 0:00:16]} (58... Rxg5+ $18 59. Ke6 Rg3 60. Rf7+ (60. Rxh7 Re3+ 61. Kd7 a4 $16) 60... Kg8) 59. Rxh7 {[%emt 0:00:35]} Rg1 {[%emt 0:00:46]} 60. Ra7 {[%emt 0:00:42]} Rf1 {[%emt 0:00:23]} 61. Ke6 $1 {[%emt 0:01:08][%cal Ra7a8]} (61. Rxa5 {leads to mate.} Rf5+ 62. Ke6 Rxa5 63. Kf6 Kd7 64. Kxg6 Ke6 65. Kh5 Kf5 66. g6 Ra1 67. Kh4 Rh1+ 68. Kg3 Rg1+ 69. Kf3 Rxg6 70. d7 Rd6 71. d8=B Rxd8 72. Ke3 Rd6 73. Kf2 Kf4 74. Ke2 Rd7 75. Kf2 Re7 76. Kg2 Re2+ 77. Kf1 Kf3 78. Kg1 Re1+ 79. Kh2 Rc1 80. Kh3 Rh1#) 61... Re1+ {[%emt 0:00:02] [#]} 62. Kf6 $1 {[%emt 0:00:16]} Ra1 {[%emt 0:00:43]} 63. Kxg6 {[%emt 0:00:52]} a4 {[%emt 0:00:01]} 64. Kg7 {[%emt 0:00:55]} a3 {[%emt 0:00:06]} 65. g6 {[%emt 0:00:28]} ({Not} 65. Kf6 a2 $11) 65... a2 {[%emt 0:02:00]} 66. Re7+ {[%emt 0:00:11]} Kd8 {[%emt 0:00:03] [#]} 67. Ra7 $2 {[%emt 0:01:33]} (67. Re2 $1 {mates} Kd7 68. Rd2 Rg1 69. Rxa2 Kxd6 70. Kf7 Rf1+ 71. Kg8 Rh1 72. Ra7) 67... Ke8 $11 {[%emt 0:00:01] The position is equal.} 68. Ra8+ {[%emt 0:00:36]} Kd7 {[%emt 0:00:08]} 69. Ra6 {[%emt 0:00:02]} Kd8 {[%emt 0:00:58]} 70. Ra7 {[%emt 0:01:31]} (70. Ra5 $5 Kd7 $8 71. Kg8 $11) 70... Ke8 {Weighted Error Value: White=0.38/Black=0.41} 1/2-1/2

[Event "US Masters 2022"]
[Site "Charlotte"]
[Date "2022.11.27"]
[Round "7.13"]
[White "Negi, Parimarjan"]
[Black "Hilby, Craig"]
[Result "1-0"]
[ECO "C11"]
[WhiteElo "2639"]
[BlackElo "2411"]
[Annotator "TA"]
[PlyCount "98"]
[EventDate "2022.11.23"]
[EventType "swiss"]
[EventCountry "USA"]
[SourceTitle "playchess.com"]
[Source "ChessBase"]
[SourceQuality "1"]
[TimeControl "5400+30"]

{[%evp 15,98,16,15,-19,-14,-98,-108,-85,-55,-25,-33,-28,0,-21,-2,-10,-3,-132,0,-80,0,-151,-177,-173,-31,-113,-84,-104,-74,-118,-89,-204,0,0,0,0,0,-68,37,35,531,572,572,553,560,525,512,440,426,256,512,474,548,523,532,514,515,502,558,496,851,660,568,552,989,942,3571,1700,1573,316,254,0,2761,2697,2065,1988,29983,29984,29984,6111,4609,736,6064,5591,1540]} 1. e4 {[%emt 0:02:08]} e6 {[%emt 0:03:19]} 2. d4 {[%emt 0:00:08]} d5 {[%emt 0:00:04]} 3. Nc3 {[%emt 0:00:05]} Nf6 {[%emt 0:00:08]} 4. e5 {[%emt 0:01:42]} Nfd7 {[%emt 0:00:37]} 5. f4 {[%emt 0:00:07]} c5 {[%emt 0:00:12]} 6. Nf3 {[%emt 0:00:05]} Nc6 {[%emt 0:00:05]} 7. Ne2 {[%emt 0:00:05]} f6 {[%emt 0:00:43] 7...Be7 is the modern continuation.} 8. c3 {[%emt 0:00:23]} Qb6 {[%emt 0:00:07]} (8... Be7 {simplifies} 9. g3 O-O 10. Bh3 cxd4 11. Nexd4 Nxd4 12. cxd4 fxe5 13. fxe5 Nb8) 9. h4 {[%emt 0:14:26] C11: French: Classical System: 4 e5 and 4 Bg5 dxe4.} Be7 {[%emt 0:00:09] [#]} 10. Ng3 $146 {[%emt 0:00:09]} (10. Qc2 $11) ({Predecessor:} 10. Rh3 O-O 11. a3 a5 12. h5 a4 13. Rg3 f5 14. c4 Na5 15. cxd5 exd5 16. Qxa4 cxd4 {1-0 (32) Fridman,D (2615)-Bachmann,A (2599) Chess.com INT 2020}) 10... cxd4 $1 $17 {[%emt 0:07:42]} 11. cxd4 {[%emt 0:00:18] Black is better.} Bb4+ {[%emt 0:01:32]} (11... Nxd4 {simplifies} 12. Nxd4 fxe5 13. Nf3 Bc5) 12. Ke2 $1 {[%emt 0:00:35]} O-O {[%emt 0:07:52]} 13. Be3 $1 {[%emt 0:01:08]} fxe5 {[%emt 0:18:12]} 14. fxe5 {[%emt 0:07:56]} Ba5 {[%emt 0:00:10]} 15. Rb1 {[%emt 0:05:22]} Qc7 {[%emt 0:01:36][%cal Rc6e5]} 16. Rc1 {[%emt 0:02:30]} (16. Rh3 $11 {keeps the balance.}) 16... Bb6 {[%emt 0:05:30]} (16... Qb6 17. Rb1 $15) (16... Nf6 $1 $17 {Threatens to win with ...Ne4.} 17. Qd3 Ng4) 17. Kd2 {[%emt 0:18:01] [#]} (17. Qe1 $11) 17... Ba5+ {[%emt 0:03:13]} (17... Nf6 $1 $17 {[%cal Rf6g4] Hoping for ...Ng4.} 18. Bd3 Ba5+ 19. Ke2 Ng4) 18. b4 $2 {[%emt 0:01:55]} (18. Ke2 $1 $11) 18... Bxb4+ {[%emt 0:00:56]} 19. Ke2 {[%emt 0:00:24]} Qb8 {[%emt 0:10:31]} (19... Nf6 $19 {And now ...Ng4 would win.} 20. Qb3 a5) 20. Kf2 {[%emt 0:21:25] [#]} (20. h5 $15) 20... Ndxe5 $1 {[%emt 0:04:01][%mdl 512]} 21. dxe5 {[%emt 0:00:08]} Nxe5 {[%emt 0:00:44] ...Ng4+ is the strong threat.} (21... Qxe5 22. Bd3 $15) 22. Qd4 {[%emt 0:00:54] Inhibits Ng4+.} Bd6 {[%emt 0:03:36] aiming for ...Nxf3.} 23. Nh5 {[%emt 0:00:51] [#]} (23. Rh3 $17) 23... Rf5 $2 {[%emt 0:01:29]} (23... Bd7 $1 $19 {Strongly threatening ...Qe8.} 24. Nxg7 b6) 24. Nxg7 $11 {[%emt 0:02:12]} Kxg7 {[%emt 0:01:16]} 25. Bd3 $36 {[%emt 0:01:37][%mdl 2048] White has the initiative.} Rf6 {[%emt 0:03:45]} 26. Bb1 {[%emt 0:03:36]} (26. Bg5 $11 Nxd3+ 27. Kg1 Nxc1 28. Qxf6+ Kg8 29. Qd8+ Kf7 30. Qf6+ Kg8 31. Qd8+ Kf7 32. Qf6+ Kg8) 26... Nxf3 {[%emt 0:05:20]} ({Black should try} 26... Bd7 $15 27. Rh3 Nc6) 27. gxf3 $14 {[%emt 0:00:06] Chess con chili.} e5 $4 {[%emt 0:00:07][%mdl 8192]} (27... Bd7 $1 $14) 28. Rhg1+ $18 {[%emt 0:01:32]} (28. Qxd5 Bd7 29. Rhg1+ Kh8 $18) 28... Kf7 {[%emt 0:04:48]} 29. Qxd5+ {[%emt 0:02:20]} Be6 {[%emt 0:02:03]} 30. Qd3 {[%emt 0:02:38]} Bf5 {[%emt 0:00:34]} 31. Qb5 {[%emt 0:03:23] White wants to mate with Bxf5.} a6 {[%emt 0:01:52]} 32. Qb2 {[%emt 0:00:12]} (32. Qa4 b5 33. Qd1 Bxb1 $18) 32... e4 $2 {[%emt 0:14:17]} (32... Be6 33. Be4 (33. Bxh7 Bd5 $18) 33... Be7) 33. a4 {[%emt 0:03:52] Black must now prevent Ba2+.} Be5 {[%emt 0:00:00]} 34. Ba2+ {[%emt 0:00:02]} Be6 {[%emt 0:00:00]} 35. Bxe6+ {[%emt 0:00:06][%mdl 64] Remove Defender} Rxe6 {[%emt 0:00:00]} 36. Qb3 {[%emt 0:00:08]} Qd8 {[%emt 0:00:00]} 37. Rg5 {[%emt 0:03:06]} (37. fxe4 Qxh4+ 38. Ke2 Qh5+ 39. Ke1 (39. Kd2 $2 Qh2+ 40. Ke1 Bg3+ 41. Kf1 Rf8 $19) 39... Qh4+ 40. Ke2 Qh5+ 41. Ke1 (41. Kd2 $2 Qh2+ 42. Ke1 Bg3+ 43. Kf1 Rf8 $19) 41... Qh4+ 42. Ke2 $11) (37. Qxb7+ Re7 38. Qb4 (38. Qxe4 Bg3+ 39. Kxg3 Rxe4 $17) 38... Qd3 $11) 37... Rb8 {[%emt 0:00:00]} (37... Bf6 $142 38. Qxb7+ Re7 39. Qb3+ Re6 40. Qb7+ Re7 41. Qb3+ Re6) 38. f4 {[%emt 0:01:20]} (38. Rxe5 $2 Qxh4+ 39. Kf1 (39. Kg2 $2 Rg8+ 40. Kf1 Qh1+ 41. Ke2 Qxf3+ 42. Ke1 Rg1+ 43. Bxg1 Qxb3 $19) 39... Qh3+ 40. Ke2 Qh2+ 41. Kf1 Qh3+ 42. Ke2 Qh2+ 43. Kf1 Qxe5 $19) 38... Bd4 {[%emt 0:00:00]} 39. Rf5+ {[%emt 0:01:30]} (39. f5 Bxe3+ 40. Qxe3 (40. Kxe3 Qb6+ 41. Qxb6 Rxb6 $16) 40... Re5 $18) 39... Bf6 {[%emt 0:00:00]} 40. Rd1 {[%emt 0:00:49]} Qe7 {[%emt 0:00:07]} 41. Bc5 {[%emt 0:00:31]} Qc7 {[%emt 0:01:45]} 42. Bd4 $2 {[%emt 0:00:45]} (42. Rd6 Qe7 43. Qd5) 42... Ke7 {[%emt 0:01:20]} 43. Bc5+ $2 {[%emt 0:00:07]} (43. a5 Rc8 44. Bc5+ Kf7 45. Rd6) 43... Kf7 {[%emt 0:00:06][%cal Oe4e3]} 44. Rd6 {[%emt 0:00:38] Prevents e3+.} Rbe8 {[%emt 0:00:04]} 45. Qd5 {[%emt 0:01:02]} R8e7 {[%emt 0:02:32] [#]} 46. Rxf6+ $1 {[%emt 0:00:33][%mdl 576]} Kxf6 {[%emt 0:00:01]} 47. Qe5+ {[%emt 0:00:27]} ({Inferior is} 47. Bd4+ Kf7 48. Bc5 (48. Qf5+ Ke8 $17) 48... Ke8 49. Qh5+ (49. Rxe6 Qxf4+ 50. Ke1 Qg3+ 51. Kd2 Qg2+ 52. Kc1 Qf1+ 53. Kd2 Qg2+ 54. Ke1 Qh1+ 55. Ke2 Qg2+ 56. Ke1 Qh1+ 57. Ke2 Qg2+ 58. Ke1 $11) 49... Rg6 $11) (47. Rxe6+ $142 Rxe6 48. Qg5+ Kf7 49. Qf5+ Rf6 50. Qxh7+ (50. Qxe4 Rxf4+) 50... Ke6 51. Qxc7 b6 52. Qe7+ Kd5 53. Qxf6) 47... Kf7 {[%emt 0:00:09] White is clearly winning.} 48. Rxe6 {[%emt 0:00:03]} (48. Qf5+ $142 Kg7 49. Rxe6 (49. Bd4+ Kg8 $17) 49... Qxc5+ 50. Qxc5 Rxe6 51. Qg5+ Kf7 52. Qf5+ Rf6 53. Qxh7+ Kf8 54. Qxe4) 48... Qxc5+ {[%emt 0:01:22]} 49. Qxc5 {[%emt 0:00:01]} Kxe6 {[%emt 0:00:07] Weighted Error Value: White=0.69/Black=0.68} 1-0

[Event "US Masters 2022"]
[Site "Charlotte"]
[Date "2022.11.27"]
[Round "7.14"]
[White "Theodorou, Nikolas"]
[Black "Wang, Kevin"]
[Result "1/2-1/2"]
[ECO "E97"]
[WhiteElo "2598"]
[BlackElo "2407"]
[Annotator "TA"]
[PlyCount "123"]
[EventDate "2022.11.23"]
[EventType "swiss"]
[EventCountry "USA"]
[SourceTitle "playchess.com"]
[Source "ChessBase"]
[SourceQuality "1"]
[TimeControl "5400+30"]

{[%evp 20,123,54,19,36,39,62,57,53,50,75,45,69,69,82,37,70,8,12,13,13,0,0,-2,-10,-6,-14,-2,0,0,40,42,35,23,57,42,54,57,88,80,115,68,54,10,22,24,25,17,22,4,0,8,14,0,0,0,0,0,0,0,15,17,18,17,16,14,31,25,25,20,31,8,99,31,91,68,68,72,74,40,40,40,41,41,129,112,125,118,161,77,77,77,70,70,64,0,43,0,8,8,8,8,7,0,0,0]} 1. d4 {[%emt 0:08:23]} Nf6 {[%emt 0:00:16]} 2. Nf3 {[%emt 0:00:20]} g6 {[%emt 0:00:37]} 3. c4 {[%emt 0:01:10]} Bg7 {[%emt 0:00:23]} 4. Nc3 {[%emt 0:00:11]} O-O {[%emt 0:00:43]} 5. e4 {[%emt 0:00:03]} d6 {[%emt 0:00:29]} 6. Be2 {[%emt 0:00:04]} e5 {[%emt 0:00:35]} 7. O-O {[%emt 0:00:06]} Nc6 {[%emt 0:00:32]} 8. d5 {[%emt 0:00:48]} Ne7 {[%emt 0:00:22]} 9. b4 {[%emt 0:00:16]} a5 {[%emt 0:01:04]} 10. bxa5 {[%emt 0:01:01]} Rxa5 {[%emt 0:03:27]} 11. a4 {[%emt 0:00:06]} Ne8 {[%emt 0:00:47] is now debated instead of 11...Nd7. E97: King's Indian: Classical Main Line (6...e5 7 0-0 Nc6): 8 Be3 and 8 d5 Ne7, not 9 Ne1.} 12. Nd2 {[%emt 0:08:01][%cal Bf3d2,Bd2b3,Bb3a5][%mdl 32]} b6 {[%emt 0:04:36]} 13. Nb3 {[%emt 0:01:29]} Ra8 {[%emt 0:01:27] White is slightly better.} 14. a5 {[%emt 0:00:05]} bxa5 {[%emt 0:01:49] [#]} 15. Rxa5 $146 {[%emt 0:00:52]} (15. Nxa5 $5 {[%cal Ra5c6]} Ba6 16. c5 $14) ({Predecessor:} 15. Nxa5 Bd7 16. c5 dxc5 17. Nb7 Qc8 18. Rxa8 Qxa8 19. Nxc5 Bc8 20. Bg5 f6 21. Be3 {1-0 (54) Cheparinov,I (2664)-Petrovskiy,V (2239) Warsaw 2021}) 15... Rb8 {[%emt 0:16:08]} 16. Ra7 {[%emt 0:01:56]} f5 {[%emt 0:03:12]} 17. Na5 {[%emt 0:02:06] White is much more active.} (17. f3 {keeps more tension.} c5 18. Bg5 Bf6 19. Bd2) 17... fxe4 {[%emt 0:08:15]} 18. Nxe4 {[%emt 0:17:45]} (18. c5 $14) 18... Bf5 $1 $11 {[%emt 0:02:17]} 19. Nc3 {[%emt 0:03:22]} Ra8 {[%emt 0:05:24]} 20. Nb5 {[%emt 0:12:13]} Bd7 {[%emt 0:04:13] [#] White must now prevent ...Bxb5.} 21. Qb3 {[%emt 0:07:25]} Nf5 {[%emt 0:15:02] ...Bxb5 is the strong threat.} 22. Rxa8 {[%emt 0:06:50]} Qxa8 {[%emt 0:00:18]} 23. Qb4 {[%emt 0:00:02]} e4 {[%emt 0:03:30]} 24. Bd2 {[%emt 0:00:02]} Nd4 {[%emt 0:09:46]} 25. Nxd4 {[%emt 0:00:22]} Bxd4 {[%emt 0:00:01]} 26. Nb3 {[%emt 0:01:14]} Be5 {[%emt 0:01:19]} 27. Bc3 $1 {[%emt 0:03:13]} Bxc3 {[%emt 0:01:23]} 28. Qxc3 {[%emt 0:00:02]} Qa7 {[%emt 0:00:31]} 29. c5 {[%emt 0:11:12]} Nf6 {[%emt 0:00:30]} 30. Ra1 {[%emt 0:00:03]} (30. Bc4 $16) 30... Qb8 $1 $14 {[%emt 0:00:38]} 31. Nd4 {[%emt 0:00:02] Against Bb5. With the idea Bc4.} dxc5 {[%emt 0:01:44]} (31... e3 {with more complications.} 32. f3 Nxd5 33. Bc4 Be6) 32. Qxc5 {[%emt 0:00:36]} Qb2 {[%emt 0:01:00]} 33. Rf1 {[%emt 0:00:36]} Qb6 {[%emt 0:01:53]} 34. Qxb6 {[%emt 0:03:25]} cxb6 {[%emt 0:00:01]} 35. Rb1 {[%emt 0:00:06]} Rc8 {[%emt 0:03:59]} 36. Rxb6 {[%emt 0:05:52]} Rc1+ {[%emt 0:01:45]} 37. Bf1 {[%emt 0:00:02]} Kf7 {[%emt 0:01:32]} (37... Nxd5 $2 38. Rd6 Nf4 39. Rxd7 $18) 38. d6 {[%emt 0:00:33]} Rd1 {[%emt 0:00:59]} 39. Nc2 {[%emt 0:02:07]} Ne8 {[%emt 0:01:50]} 40. Ne3 {[%emt 0:00:51]} Rxd6 {[%emt 0:00:14]} 41. Rb7 {[%emt 0:00:05]} Nf6 {[%emt 0:00:35]} 42. h3 {[%emt 0:00:04]} Rd2 {[%emt 0:01:05]} 43. Bb5 {[%emt 0:00:27]} Ke7 {[%emt 0:00:46]} 44. g4 {[%emt 0:00:46]} h6 {[%emt 0:03:28]} 45. h4 {[%emt 0:00:13]} Ne8 {[%emt 0:01:18]} (45... Ke6 $11) 46. Bc6 {[%emt 0:02:01]} (46. Nc4 $16 Rd5 47. Bc6 Rd1+ 48. Kg2) 46... Kd8 {[%emt 0:00:51]} ({Black should play} 46... Nf6 $14) 47. Rb8+ {[%emt 0:00:57]} Ke7 {[%emt 0:00:29]} ({Weaker is} 47... Kc7 48. Rxe8 (48. Bxd7 Kxd7 49. Rb7+ Nc7 $16) 48... Bxc6 49. Rh8 $16) 48. Bxe4 {[%emt 0:01:17]} Nf6 {[%emt 0:00:01]} 49. Bf3 {[%emt 0:01:03]} Rd4 {[%emt 0:00:31][%cal Rf6g4]} 50. Rb7 {[%emt 0:00:02]} Ke8 {[%emt 0:00:24][%cal Rd7g4]} 51. Rb6 {[%emt 0:01:00]} Nxg4 {[%emt 0:00:36]} ({Black should try} 51... Kf7 $1 $14) 52. Bxg4 $16 {[%emt 0:00:30]} ({Much worse is} 52. Rxg6 $6 Ne5 53. Rg3 Rxh4 $11) 52... Bxg4 {[%emt 0:00:01]} 53. Rxg6 $14 {[%emt 0:00:10][%mdl 4096] Endgame KRB-KRN} h5 {[%emt 0:01:21]} 54. Kg2 {[%emt 0:01:36]} (54. Nxg4 $18 {is more deadly.} hxg4 55. Kg2) 54... Kf7 $16 {[%emt 0:00:01]} 55. Rg5 {[%emt 0:00:05]} Rf4 {[%emt 0:00:21]} 56. Nd5 {[%emt 0:00:59]} Rf3 {[%emt 0:00:18]} 57. Ne3 {[%emt 0:00:55]} Rf4 {[%emt 0:00:01]} 58. Nf1 {[%emt 0:01:02]} Bd1 {[%emt 0:02:52] The position is equal.} 59. Rd5 {[%emt 0:00:54]} Be2 {[%emt 0:00:00]} 60. Ne3 {[%emt 0:00:58] White wants to play Rf5+.} Rxh4 {[%emt 0:00:00]} 61. Rd2 {[%emt 0:00:20]} Bb5 {[%emt 0:00:00]} 62. f3 {[%emt 0:00:16] Weighted Error Value: White=0.14 (very precise) /Black=0.13 (very precise)} 1/2-1/2